Cogmind - Beta 14 @@@ ROGUE MODE // 2025.04.27 @ 13:29:50 Player: Zaros426 Result: Destroyed by D-53 Grenadier with Mini Grenade Launcher Performance ------------- Evolutions (0) 0 Regions Visited (2) 400 Robots Destroyed (30) 150 Value Destroyed (638) 638 Prototype IDs (3) 60 Alien Tech Used (0) 0 Bonus (0) 0 TOTAL SCORE: 1248 Bonus ------- None Cogmind --------- Core Integrity 0/250 Matter 164/300 Energy 100/100 System Corruption 7% Temperature Cool (0) Movement Core (1400) Ox27 Location -10/Mines Parts ------- > --- POWER (1) -------- (None) > --- PROPULSION (2) --- (None) > --- UTILITY (2) ------ Improved Heat Sink Huge Storage Unit > --- WEAPON (2) ------- Assault Rifle > --- INVENTORY (25) --- High-capacity Storage Unit High-capacity Matter Pod (200) Structural Scanner Experimental Sensor Array Improved Terrain Scanner Seismic Detector Decoy Drone Bay Medium Laser Medium Laser Medium Laser Beam Cannon Beam Cannon Grenade Launcher Grenade Launcher Mining Laser Proton Bomb Trap Proton Bomb Trap Peak State ------------ > --- POWER ------------ Ion Engine > --- PROPULSION ------- Light Treads Light Treads > --- UTILITY ---------- Improved Heat Sink High-capacity Storage Unit > --- WEAPON ----------- Medium Laser Beam Cannon > --- INVENTORY -------- Compact Wheel Large Storage Unit Huge Storage Unit High-capacity Matter Pod Structural Scanner Experimental Sensor Array Improved Terrain Scanner Seismic Detector Decoy Drone Bay Medium Laser Medium Laser Medium Laser Assault Rifle Light Cannon Grenade Launcher Grenade Launcher Mining Laser [Rating: 13] Favorites ----------- Power Ion Engine Engine Ion Engine Propulsion Light Treads Treads Light Treads Wheel Compact Wheel Utility Improved Heat Sink Device Improved Heat Sink Storage Huge Storage Unit Weapon Medium Laser Energy Gun Medium Laser Energy Cannon Beam Cannon Ballistic Gun Assault Rifle Ballistic Cannon Light Cannon Launcher Grenade Launcher Special Weapon Mining Laser Build | -11 -10 -10 ------- Run | Yrd Mat Min Slots Evolved . | . . . Power . | . . . Propulsion . | . . . Utility . | . . . Weapon . | . . . Parts Attached 23 | 6 9 8 Power 3 | 1 1 1 Engine 3 | 1 1 1 Core . | . . . Reactor . | . . . Propulsion 3 | 2 . 1 Treads 2 | 2 . . Leg . | . . . Wheel 1 | . . 1 Hover . | . . . Flight . | . . . Utility 7 | 1 3 3 Device 2 | . 1 1 Storage 5 | 1 2 2 Processor . | . . . Hackware . | . . . Protection . | . . . Artifact . | . . . Weapon 10 | 2 5 3 Energy Gun 3 | 2 1 . Energy Cannon 2 | . 2 . Ballistic Gun 1 | . . 1 Ballistic Cannon 1 | . . 1 Launcher 1 | . . 1 Special Weapon 2 | . 2 . Impact Weapon . | . . . Slashing Weapon . | . . . Piercing Weapon . | . . . Special Melee Weapon . | . . . Unidentified Prototypes . | . . . Parts Lost 7 | . 1 6 Power 1 | . . 1 Propulsion 3 | . . 3 Utility . | . . . Weapon 3 | . 1 2 Highest Loss Streak 3 | . 1 3 To Critical Strikes . | . . . Average Slot Usage (%) 96 | . 96 95 Engine 12 | . 14 11 Treads 27 | . 28 26 Device 11 | . 10 14 Storage 14 | . 14 14 Energy Gun 18 | . 23 11 Energy Cannon 7 | . 4 11 Ballistic Gun 1 | . . 2 Ballistic Cannon 1 | . . 2 Peak Build Rating 13 | 6 10 13 Average Rating 10 | 5 8 12 On Entrance 5 | . 6 10 Naked Turns . | . . . Heaviest Build 91 | 14 91 91 Greatest Support 40 | 40 40 40 Greatest Overweight (x) 4 | . 2 4 Average Overweight (x) . | . . 1 Largest Inventory Capacity 25 | 8 25 25 Average Capacity 17 | 7 15 21 Most Carried 24 | 4 15 24 Average Carried 12 | 1 8 19 Final Capacity 25 | 8 15 25 Final Carried 18 | 4 15 18 Class Distribution -------------------- 100% | Mutant Dominant Class ---------------- Mutant | -10/Materials Mutant | -10/Mines Resources | -11 -10 -10 ----------- Run | Yrd Mat Min Matter Collected 634 | 260 327 47 Remotely . | . . . Salvage Created 1019 | 150 711 158 Parts 58 | 11 42 5 Haulers Intercepted 2 | . 2 . Recyclers Shooed 4 | 1 3 . Parts Field Recycled . | . . . Retrieved Matter . | . . . Parts Self-Destructed . | . . . Prevented . | . . . Kills | -11 -10 -10 ------- Run | Yrd Mat Min Combat Hostiles Destroyed 19 | . 14 5 Guns 12 | . 11 1 Cannons 5 | . 1 4 Classes Destroyed 9 | 2 6 1 Worker 2 | . 2 . Builder 1 | . 1 . Tunneler 4 | 3 1 . Hauler 2 | . 2 . Recycler 1 | 1 . . Watcher 3 | . 3 . Swarmer 3 | . 3 . Grunt 14 | . 11 3 Assembled 2 | . . 2 Best Kill Streak 8 | 3 8 2 Combat Bots Only 5 | . 5 2 Max Kills in Single Turn 1 | 1 1 1 Gunslinging . | . . . Exploded . | . . . Melee . | . . . Uniques/NPCs Destroyed . | . . . Combat | -11 -10 -10 -------- Run | Yrd Mat Min Hostile Shots Fired 91 | . 60 31 Missed 19 | . 15 4 Damage Taken 1152 | . 497 655 Core 253 | . 83 170 Absorbed by Shields . | . . . Core Remaining (%) 100 | 100 . . Volleys Fired 94 | 11 61 22 Largest 2 | 2 2 2 Hottest 110 | 100 110 110 Shots Fired 185 | 22 121 42 Gun 156 | 22 112 22 Cannon 28 | . 8 20 Launcher . | . . . Special 1 | . 1 . Kinetic 24 | . . 24 Thermal 161 | 22 121 18 Explosive . | . . . Electromagnetic . | . . . Robot Hit Streak 10 | 4 10 7 Robot Miss Streak 6 | 6 5 4 Penetration Max . | . . . Secondary Targets 2 | . 2 . Max Gunslinging Chain 1 | . 1 . Shots Hit Robots 106 | 11 74 21 Core Hits 49 | 5 35 9 Critical Kills . | . . . Critical Parts Destroyed . | . . . Critical Strikes 6 | 1 4 1 Burn 6 | 1 4 1 Melee Attacks . | . . . Impact . | . . . Slashing . | . . . Piercing . | . . . Sneak Attacks . | . . . Combat Hostiles . | . . . Follow-up Attacks . | . . . Damage Inflicted 1506 | 149 1012 345 Guns 1200 | 149 917 134 Cannons 303 | . 92 211 Explosions . | . . . Melee . | . . . Ramming 3 | . 3 . Kinetic 137 | . . 137 Thermal 1366 | 149 1009 208 Explosive . | . . . Electromagnetic . | . . . Impact . | . . . Slashing . | . . . Piercing . | . . . Highest Corruption 7 | . 2 7 Average Corruption 2 | . 2 2 Corruption Purged . | . . . Corruption Blocked . | . . . Effects 30 | . 12 18 Message Errors 6 | . 1 5 Matter Fused 12 | . 5 7 Heat Flow Errors 5 | . 1 4 Energy Discharges 3 | . 1 2 Data Loss (minor) 3 | . 3 . Alerts 1 | . 1 . Overload Shots . | . . . Overflow Damage . | . . . Projectiles . | . . . Explosions . | . . . Melee . | . . . Knockbacks 1 | . . 1 Impact . | . . . Kinetic 1 | . . 1 Secondary . | . . . Self-Inflicted Damage . | . . . Shots . | . . . Rammed 1 | . 1 . Targets Rammed 1 | . 1 . Kicked . | . . . Crushed . | . . . Highest Temperature 255 | 217 255 229 Average Temperature 76 | 121 69 56 Received Heat Transfer 306 | . 246 60 Siege Activations . | . . . Robots Corrupted . | . . . Combat Hostiles . | . . . Parts Fried . | . . . Impact Corruptions . | . . . Robots Melted 2 | . 2 . Combat Hostiles 2 | . 2 . Parts Melted 9 | 2 5 2 Heat Transferred 4181 | 518 3108 555 Parts Sabotaged . | . . . Parts Stolen . | . . . Parts Stripped . | . . . Power Chain Reactions . | . . . Alert | -11 -10 -10 ------- Run | Yrd Mat Min Peak Influence 243 | 20 243 87 Initial 37 | . 13 37 Average 48 | 9 72 20 Maximum Alert Level 1 | . 1 . Low Security (%) 99 | 100 98 100 Level 1 . | . 1 . Level 2 . | . . . Level 3 . | . . . Level 4 . | . . . Level 5 . | . . . High Security . | . . . Max Security . | . . . Squads Dispatched 4 | . 3 1 Investigation 4 | . 3 1 Extermination . | . . . Reinforcement . | . . . Assault . | . . . Garrison . | . . . Intercept . | . . . Searches Triggered . | . . . Construction Impeded . | . . . Haulers Reinforced . | . . . Active Scanning Responses . | . . . Cargo Convoy Interrupts . | . . . Stealth | -11 -10 -10 --------- Run | Yrd Mat Min Distress Signals . | . . . Communications Jammed . | . . . Distress Signals . | . . . Times Spotted 27 | . 19 8 Peak Tracking Total 4 | . 4 2 Tactical Retreats . | . . . Traps | -11 -10 -10 ------- Run | Yrd Mat Min Traps Triggered 1 | . 1 . Indirectly . | . . . Trap Hack Attempts . | . . . Triggered . | . . . Disarmed . | . . . Reprogrammed . | . . . Reused 2 | . . 2 Traps Extracted . | . . . Installed 3 | . . 3 Triggered . | . . . Most Traps Carried 5 | . . 5 Machines | -11 -10 -10 ---------- Run | Yrd Mat Min Machines Disabled . | . . . Max in Single Turn . | . . . Machines Repaired . | . . . Machines Dismantled . | . . . Machines Sabotaged . | . . . Overloaded Fab Kills . | . . . Hacking | -11 -10 -10 --------- Run | Yrd Mat Min Machines Accessed 12 | . 10 2 Terminals 9 | . 8 1 Fabricators . | . . . Repair Stations . | . . . Recycling Units 2 | . 2 . Scanalyzers . | . . . Garrison Access . | . . . Total Hacks 36 | . 33 3 Successful 18 | . 17 1 Failed 18 | . 16 2 Catastrophic 2 | . 2 . Database Lockouts . | . . . Manual 28 | . 26 2 Terminals 31 | . 29 2 Fabricators . | . . . Repair Stations . | . . . Recycling Units 4 | . 4 . Scanalyzers . | . . . Garrison Access . | . . . Terminal Hacks 8 | . 7 1 Robot Analysis 2 | . 2 . Prototype ID Bank 2 | . 2 . Open Door 1 | . . 1 Terminal Index 1 | . 1 . Locate Traps 2 | . 2 . Fabricator Hacks . | . . . Repair Station Hacks . | . . . Recycling Unit Hacks . | . . . Scanalyzer . | . . . Garrison Access Hacks . | . . . Unauthorized Hacks 10 | . 10 . Terminals 8 | . 8 . Botnet 2 | . 2 . Operators 1 | . 1 . Skim 5 | . 5 . Fabricators . | . . . Repair Stations . | . . . Recycling Units 2 | . 2 . Tunnel 2 | . 2 . Scanalyzers . | . . . Garrison Access . | . . . Data Cores Recovered . | . . . Used . | . . . Hacking Detections 9 | . 8 1 Full Trace Events 2 | . 1 1 Feedback Events . | . . . Feedback Blocked . | . . . Robot Schematics Acquired . | . . . Robots Built . | . . . Authchips . | . . . Time . | . . . Total Robot Build Rating . | . . . Part Schematics Acquired . | . . . Parts Built . | . . . Authchips . | . . . Time . | . . . Total Part Build Rating . | . . . Parts Repaired . | . . . Time . | . . . Parts Recycled . | . . . Recycled Matter . | . . . Retrieved Matter . | . . . Retrieved Components . | . . . Parts Scanalyzed . | . . . Part Schematics Acquired . | . . . Parts Damaged . | . . . Bothacking | -11 -10 -10 ------------ Run | Yrd Mat Min Used RIF Installer . | . . . Robots Hacked . | . . . Non-combat . | . . . Combat . | . . . Robot Hacks Applied . | . . . Relay Couplers Released . | . . . Fabnet Peak Effective % . | . . . Robots Rewired . | . . . Allies Hacked . | . . . Hacks Repelled . | . . . Allies | -11 -10 -10 -------- Run | Yrd Mat Min Total Allies . | . . . Largest Group . | . . . Highest-Rated Group . | . . . Highest-Rated Ally . | . . . Total Orders . | . . . Ally Attacks . | . . . Total Damage . | . . . Kills . | . . . Allies Corrupted . | . . . Allies Melted . | . . . Intel | -11 -10 -10 ------- Run | Yrd Mat Min Robot Analysis Total 2 | . 2 . Derelict Logs Recovered 1 | . . 1 Drone Launches . | . . . Drone Recoveries . | . . . Exploration | -11 -10 -10 ------------- Run | Yrd Mat Min Turns Passed 2811 | 162 1563 1086 Spaces Moved 1080 | 71 631 378 Core 4 | 4 . . Treads 1076 | 67 631 378 Legs . | . . . Wheels . | . . . Hover . | . . . Flight . | . . . Fastest Speed 50 | 50 160 160 Average Speed 221 | 153 204 262 Slowest Speed 480 | 160 320 480 Overloaded Moves . | . . . Propulsion Burnouts . | . . . Robots Hopped . | . . . Cave-ins Triggered . | . . . Exploration Rate (%) 56 | 5 99 65 Regions Visited 2 Branch Regions 1 Pre-discovered Areas 3 | . 3 . Known Exits Taken 1 | . 1 . Unknown Exits Taken 1 | 1 . . Scrap Searched 1 | . . 1 Spaces Dug 1 | . 1 . Terrain Destroyed 1 | . 1 . Melee . | . . . Projectile 1 | . 1 . AOE . | . . . Terrain Rammed . | . . . Walls Destroyed . | . . . Machines Disabled . | . . . Actions | -11 -10 -10 --------- Run | Yrd Mat Min Total 1306 | 99 777 430 Wait 68 | 6 59 3 Move 1078 | 70 630 378 Hop . | . . . Pick Up 28 | 5 14 9 Fast Attach 7 | 6 1 . Attach 3 | . 1 2 Detach . | . . . Swap 13 | . 7 6 Drop 11 | 1 3 7 Fire 94 | 11 61 22 Melee . | . . . Ram . | . . . Kick . | . . . Crush 1 | . 1 . Escape Stasis . | . . . Rewire . | . . . Trap 3 | . . 3 Miscellaneous . | . . . Route ------- -11/Scrapyard -10/Materials (discovered 5 exits: *Mat x3 / *Min x2) -10/Mines (discovered 2 exits: *Mat x2) History --------- Turn | Location | Event 28 | -11/Scrapyard | Discovered new exit (range 16) 163 | -11/Scrapyard | Entered Materials 316 | -10/Materials | Build established: Mutant 461 | -10/Materials | Discovered new exit (range 4) 716 | -10/Materials | Discovered new exit (range 16) 770 | -10/Materials | Identified exit to Mines 846 | -10/Materials | Identified exit to Materials 912 | -10/Materials | Learned location of 1 exit from Materials 966 | -10/Materials | Learned location of Mines (-9) 1008 | -10/Materials | Learned Storage security intel 1060 | -10/Materials | Learned Storage trap positions 1120 | -10/Materials | Learned 2 Storage zone layouts 1726 | -10/Materials | Entered Mines 1745 | -10/Mines | Found the Drone Emporium 1755 | -10/Mines | Found Prototype Device 1835 | -10/Mines | Found a damaged Exp. Sensor Array with a note attached 1840 | -10/Mines | Found Prototype Device 2428 | -10/Mines | Found a hidden stash of uninstalled traps 2486 | -10/Mines | Discovered exit to Materials (range 9) 2589 | -10/Mines | Discovered exit to Materials (range 7) 2593 | -10/Mines | Assembled infested the area 2598 | -10/Mines | Assisted by a Guerilla fighting off Assembled 2799 | -10/Mines | Core integrity fell below 50% 2805 | -10/Mines | Core integrity fell below 20% 2812 | -10/Mines | Destroyed by D-53 Grenadier with Mini Grenade Launcher Last Messages --------------- 02676_ Installed Proton Bomb Trap. 02685_ System corrupted: Energy discharge (-37). 02705_ Lgt. Treads destroyed. 02711_ as-06949 misfires. 02718_ YQAVRXKZJJ/LQ|OJ49 2A8K 02720_ as-06949 destroyed. 02734_ JAEF 02777_ U-05 Engineer builds a Wall. 02786_ System corrupted: Heat flow error (+128). 02786_ Dropped Proton Bomb Trap. 02786_ Installed Proton Bomb Trap. 02796_ Lgt. Treads destroyed. 02796_ D-53 Grenadier destroyed. 02798_ D-53 Grenadier knocked back. 02802_ QK0YKKAJ2KO%|GG:O:#Q20P8 02810_ Com. Wheel destroyed. 02811_ The unstable cave ceiling collapses. 02812_ Lgt. Cannon destroyed. Map ----- +----------------------------------------------------+ | ?# ## ####### #####???????????? | | ?# ## #### ##?# ##???????????????? | | ?# ?##### #??####??# ### #????????????????? | | ?# ??????# ##????????# #?## #################?? | | ?????????# ##?????????# #??# % #?? | | ?????????# ############ #??# ############### #?? | | ?????????# #??# #??###????????# #?? | | ?????????# ##############??# ### #????????# #?? | | ?????????# #???????????????# %## #????????# #?? | | ?????????# #???????????????# # ##????????# #?? | | ????????? #??????????????## #?????????# #?? | | ???????? ?????????????## ##?????????# #?? | | ??????? #?????????????# ##????###### ##? | | ?????? #####?????????????# #????# #? | | ????? #??????????????????## #????# #? | | ?????##????????????????????# ##???#T """ #? | | ??????????????????????????## ###????## """ #? | | ????????????????????????### ##???????# """ #? | | ??????????????????????### #??#####?# #? | | ?????????????????????## #### ### """ #? | | ????????????????????## ## """ #? | | ???????????????######d % < ## """ #? | | ???????????????# % #### # ## #? | | ??????????????# #?# ## ## #? | | ?????????????# %# ### #?# ##?########? | | ??????????# # #@ ## ##?##??####????? | | ?????????# ??? ?# ####?## ##???? | | ???????????????? #?# ##??? | | ?????????????? ### ##?? | | ??????????? ## ## ### #?? | | ???????????? ?? ### ### ###?#### #?? | | ???????????? ###?? #??# ### ######## % ##?? | | ???????????? ?????? ???# ##??? | | ????????????????????#????# % %##???? | | ?????????????????????????################# ##???? | | ?????????????????????????????????????????##^ ##??? | | ??????????????????????????????????#####???# ##?? | | ?????????????????????????????????## ##??# ##? | | ?????????????????????????????????# #### #? | | ?????????????????????????????????# < #? | | ?????????????????????????????????## ## #? | | ??????????????????????????????????# ### #? | | ??????????????????????????????????# #?# #? | | ??????????????????? ###??????#% ##?## ##? | | ??????????????????????? ### ###????###?? | | ??????????????????????????????# ^ ##??????????? | | ??????????????????????????????########???????????? | | ?????????????????????????????????????????????????? | | ?????????????????????????????????????????????????? | | ?????????????????????????????????????????????????? | +----------------------------------------------------+ Best States ------------- Heat Dissipation 39 Energy Generation 10 Energy Capacity 250 Matter Stores 300 Matter Capacity 300 Sight Range 16 Terrain Scan Density 10 Evasion (%) 40 Recoil Reduction 2 Item Schematics ----------------- None Robot Schematics ------------------ None Fabricated ------------ Nothing Alien Tech Used ----------------- None Achievements -------------- None Challenges ------------ None Game ------ Seed AuthchipGunLink Manual? 0 Play Time 00:13:26 Cumulative 211.1 hours Start 2025.04.27 @ 13:16:25 End 2025.04.27 @ 13:29:50 Sessions 1 Manual Loads 0 Difficulty Rogue Special Mode None Game No. 104 Rogue 104 Adventurer 0 Explorer 0 Win Type - Total 0 Types 0/0/0/0/0/0/0/0/0 Lore% 55 Gallery% 73 Achievement% 60 Wizard Run 0 Options --------- Layout 0 ASCII 0 Keyboard 0 Movement Mouse Keybinds 0 Fullscreen 1 Font 24/Smallcaps Map View 183x50 Zoom Use 0% Tactical HUD 1 Map Filters NONE Filters NONE Steam 0 RUN: 919b24ca-2997-4346-9edd-851ac6290ee2